fUSD/lending_fUSD_20240627
["ID","MTS","AMOUNT","RATE_DAILY","PERIOD"]
[330483928,1719490249114,-500.0,0.00019355,2]
[330483929,1719490249124,-500.0,0.00019355,2]
[330483930,1719490249132,-500.0,0.00019355,2]
[330483931,1719490249141,-500.0,0.00019355,2]
[330483932,1719490249151,-500.0,0.00019355,2]
[330483933,1719490249160,-500.0,0.00019355,2]
[330483934,1719490249170,-500.0,0.00019355,2]
[330483935,1719490249179,-500.0,0.00019355,2]
[330483936,1719490249188,-500.0,0.00019355,2]
[330483937,1719490249197,-500.0,0.00019355,2]
[330483938,1719490249207,-500.0,0.00019355,2]
[330483939,1719490249216,-500.0,0.00019355,2]
[330483940,1719490249225,-500.0,0.00019355,2]
[330483941,1719490249236,-500.0,0.00019355,2]
[330483942,1719490249246,-500.0,0.00019355,2]
[330483943,1719490249255,-500.0,0.00019355,2]
[330483944,1719490249264,-500.0,0.00019355,2]
[330483945,1719490249274,-500.0,0.00019355,2]
[330483946,1719490249283,-500.0,0.00019355,2]
[330483947,1719490249293,-500.0,0.00019355,2]
[330483948,1719490249303,-500.0,0.00019355,2]
[330483949,1719490249312,-500.0,0.00019355,2]
[330483950,1719490249322,-500.0,0.00019355,2]
[330483951,1719490249331,-500.0,0.00019355,2]
[330483952,1719490249342,-500.0,0.00019355,2]
[330483953,1719490249352,-500.0,0.00019355,2]
[330483954,1719490249362,-500.0,0.00019355,2]
[330483955,1719490249371,-500.0,0.00019355,2]
[330483956,1719490249381,-500.0,0.00019355,2]
[330483957,1719490249398,-500.0,0.00019355,2]
[330483958,1719490249407,-500.0,0.00019355,2]
[330483959,1719490249416,-500.0,0.00019355,2]
[330483960,1719490249426,-500.0,0.00019355,2]
[330483961,1719490249436,-500.0,0.00019355,2]
[330483962,1719490249449,-500.0,0.00019355,2]
[330483963,1719490249459,-500.0,0.00019355,2]
[330483964,1719490249469,-500.0,0.00019355,2]
[330483965,1719490249491,-500.0,0.00019355,2]
[330483966,1719490249501,-500.0,0.00019355,2]
[330483967,1719490249511,-500.0,0.00019355,2]
[330483968,1719490249521,-500.0,0.00019355,2]
[330483969,1719490249530,-500.0,0.00019355,2]
[330483970,1719490249539,-500.0,0.00019355,2]
[330483971,1719490249549,-500.0,0.00019355,2]
[330483972,1719490249559,-500.0,0.00019355,2]
[330483973,1719490249568,-500.0,0.00019355,2]
[330483974,1719490249577,-500.0,0.00019355,2]
[330483975,1719490249587,-500.0,0.00019355,2]
[330483976,1719490249596,-500.0,0.00019355,2]
[330483977,1719490249606,-500.0,0.00019355,2]
[330483978,1719490249616,-500.0,0.00019355,2]
[330483979,1719490249626,-500.0,0.00019355,2]
[330483980,1719490249637,-500.0,0.00019355,2]
[330483981,1719490249651,-500.0,0.00019355,2]
[330483982,1719490249661,-500.0,0.00019355,2]
[330483983,1719490249671,-500.0,0.00019355,2]
[330483984,1719490249681,-500.0,0.00019355,2]
[330483985,1719490249691,-500.0,0.00019355,2]
[330483986,1719490249701,-500.0,0.00019355,2]
[330483987,1719490249711,-500.0,0.00019355,2]
[330483988,1719490249721,-500.0,0.00019355,2]
[330483989,1719490249732,-500.0,0.00019355,2]
[330483990,1719490249742,-500.0,0.00019355,2]
[330483991,1719490249751,-500.0,0.00019355,2]
[330483992,1719490249760,-500.0,0.00019355,2]
[330483993,1719490249770,-500.0,0.00019355,2]
[330483994,1719490249780,-500.0,0.00019355,2]
[330483995,1719490249790,-500.0,0.00019355,2]
[330483996,1719490249800,-500.0,0.00019355,2]
[330483997,1719490249809,-500.0,0.00019355,2]
[330483998,1719490249819,-500.0,0.00019355,2]
[330483999,1719490249830,-500.0,0.00019355,2]
[330484000,1719490249840,-500.0,0.00019355,2]
[330484001,1719490249850,-500.0,0.00019355,2]
[330484002,1719490249859,-500.0,0.00019355,2]
[330484003,1719490249869,-500.0,0.00019355,2]
[330484004,1719490249878,-500.0,0.00019355,2]
[330484005,1719490249888,-500.0,0.00019355,2]
[330484006,1719490249897,-500.0,0.00019355,2]
[330484007,1719490249907,-500.0,0.00019355,2]
[330484008,1719490249916,-500.0,0.00019355,2]
[330484009,1719490249925,-500.0,0.00019355,2]
[330484010,1719490249935,-500.0,0.00019355,2]
[330484011,1719490249944,-500.0,0.00019355,2]
[330484012,1719490249953,-500.0,0.00019355,2]
[330484013,1719490249963,-500.0,0.00019355,2]
[330484014,1719490249972,-500.0,0.00019355,2]
[330484015,1719490249981,-500.0,0.00019355,2]
[330484016,1719490249991,-500.0,0.00019355,2]
[330484017,1719490250000,-500.0,0.00019355,2]
[330484018,1719490250010,-500.0,0.00019355,2]
[330484019,1719490250019,-500.0,0.00019355,2]
[330484020,1719490250028,-500.0,0.00019355,2]
[330484021,1719490250037,-500.0,0.00019355,2]
[330484022,1719490250046,-500.0,0.00019355,2]
[330484023,1719490250055,-500.0,0.00019355,2]
[330484024,1719490250065,-500.0,0.00019355,2]
[330484025,1719490250075,-500.0,0.00019355,2]
[330484026,1719490250084,-500.0,0.00019355,2]
[330484027,1719490250093,-500.0,0.00019355,2]
[330484028,1719490250103,-500.0,0.00019355,2]
[330484029,1719490250113,-500.0,0.00019355,2]
[330484030,1719490250123,-500.0,0.00019355,2]
[330484031,1719490250133,-500.0,0.00019355,2]
[330484032,1719490250142,-500.0,0.00019355,2]
[330484033,1719490250152,-500.0,0.00019355,2]
[330484034,1719490250161,-500.0,0.00019355,2]
[330484035,1719490250171,-500.0,0.00019355,2]
[330484036,1719490250180,-500.0,0.00019355,2]
[330484037,1719490250190,-500.0,0.00019355,2]
[330484038,1719490250199,-500.0,0.00019355,2]
[330484039,1719490250208,-500.0,0.00019355,2]
[330484040,1719490250218,-500.0,0.00019355,2]
[330484041,1719490250227,-500.0,0.00019355,2]
[330484042,1719490250237,-500.0,0.00019355,2]
[330484043,1719490250247,-500.0,0.00019355,2]
[330484044,1719490250257,-500.0,0.00019355,2]
[330484045,1719490250266,-500.0,0.00019355,2]
[330484046,1719490250276,-500.0,0.00019355,2]
[330484047,1719490250285,-500.0,0.00019355,2]
[330484048,1719490250294,-500.0,0.00019355,2]
[330484049,1719490250303,-500.0,0.00019355,2]
[330484050,1719490250313,-500.0,0.00019355,2]
[330484051,1719490250322,-500.0,0.00019355,2]
[330484052,1719490250331,-500.0,0.00019355,2]
[330484053,1719490250340,-500.0,0.00019355,2]
[330484054,1719490250355,-500.0,0.00019355,2]
[330484055,1719490250364,-500.0,0.00019355,2]
[330484056,1719490250374,-500.0,0.00019355,2]
[330484057,1719490250384,-500.0,0.00019355,2]
[330484058,1719490250409,-500.0,0.00019355,2]
[330484059,1719490250419,-500.0,0.00019355,2]
[330484060,1719490250428,-500.0,0.00019355,2]
[330484061,1719490250437,-500.0,0.00019355,2]
[330484062,1719490250449,-500.0,0.00019355,2]
[330484063,1719490250458,-500.0,0.00019355,2]
[330484064,1719490250468,-500.0,0.00019355,2]
[330484065,1719490250478,-500.0,0.00019355,2]
[330484066,1719490250488,-500.0,0.00019355,2]
[330484067,1719490250498,-500.0,0.00019355,2]
[330484068,1719490250507,-500.0,0.00019355,2]
[330484069,1719490250517,-500.0,0.00019355,2]
[330484070,1719490250526,-500.0,0.00019355,2]
[330484071,1719490250536,-500.0,0.00019355,2]
[330484072,1719490250545,-500.0,0.00019355,2]
[330484073,1719490250555,-500.0,0.00019355,2]
[330484074,1719490250564,-500.0,0.00019355,2]
[330484075,1719490250574,-500.0,0.00019355,2]
[330484076,1719490250584,-500.0,0.00019355,2]
[330484077,1719490250593,-500.0,0.00019355,2]
[330484078,1719490250603,-500.0,0.00019355,2]
[330484079,1719490250613,-500.0,0.00019355,2]
[330484080,1719490250623,-500.0,0.00019355,2]
[330484081,1719490250633,-500.0,0.00019355,2]
[330484082,1719490250642,-500.0,0.00019355,2]
[330484083,1719490250652,-500.0,0.00019355,2]
[330484084,1719490250664,-500.0,0.00019355,2]
[330484085,1719490250674,-500.0,0.00019355,2]
[330484086,1719490250684,-500.0,0.00019355,2]
[330484087,1719490250695,-500.0,0.00019355,2]
[330484088,1719490250704,-500.0,0.00019355,2]
[330484089,1719490250714,-500.0,0.00019355,2]
[330484090,1719490250723,-500.0,0.00019355,2]
[330484091,1719490250734,-500.0,0.00019355,2]
[330484092,1719490250743,-500.0,0.00019355,2]
[330484093,1719490250754,-500.0,0.00019355,2]
[330484094,1719490250763,-500.0,0.00019355,2]
[330484095,1719490250773,-500.0,0.00019355,2]
[330484096,1719490250782,-500.0,0.00019355,2]
[330484097,1719490250791,-500.0,0.00019355,2]
[330484098,1719490250800,-500.0,0.00019355,2]
[330484099,1719490250810,-500.0,0.00019355,2]
[330484100,1719490250819,-500.0,0.00019355,2]
[330484101,1719490250829,-500.0,0.00019355,2]
[330484102,1719490250838,-500.0,0.00019355,2]
[330484103,1719490250848,-500.0,0.00019355,2]
[330484104,1719490250858,-500.0,0.00019355,2]
[330484105,1719490250868,-500.0,0.00019355,2]
[330484106,1719490250877,-500.0,0.00019355,2]
[330484107,1719490250887,-500.0,0.00019355,2]
[330484108,1719490250896,-500.0,0.00019355,2]
[330484109,1719490250911,-282.58237941,0.00019389,2]
[330484110,1719490250932,-1059.37192108,0.00019458,2]
[330484111,1719490250941,-205.93,0.00019539,2]
[330484112,1719490250951,-225.63472297,0.00019565,2]
[330484113,1719490250961,-1697.27,0.00019589,2]
[330484114,1719490250972,-418.64,0.00019589,2]
[330484115,1719490250981,-418.64,0.00019589,2]
[330484116,1719490250991,-3179.90201373,0.00019627,2]
[330484117,1719490251000,-150.0,0.00019696,2]
[330484118,1719490251010,-213.90304588,0.00019725,2]
[330484119,1719490251020,-2840.63896348,0.00019733,2]
[330484120,1719490251030,-527.79,0.00019863,2]
[330484121,1719490251040,-150.0,0.00019932,2]
[330484122,1719490251050,-1055.75,0.00019932,2]
[330484123,1719490251060,-151.0,0.00019977,2]
[330484124,1719490251070,-46943.21049679,0.00019996,2]
[330484125,1719490251080,-151.0,0.00019996,2]
[330484126,1719490251090,-151.0,0.00019996,2]
[330484127,1719490251100,-151.0,0.00019996,2]
[330484128,1719490251109,-224.071768,0.00019996,2]
[330484129,1719490251120,-177.47181145,0.00019996,2]
[330484130,1719490251129,-151.0,0.00019996,2]
[330484131,1719490251139,-151.0,0.00019996,2]
[330484132,1719490251149,-151.0,0.00019996,2]
[330484133,1719490251159,-246.860265,0.00019996,2]
[330484134,1719490251170,-151.0,0.00019996,2]
[330484135,1719490251180,-151.0,0.00019996,2]
[330484136,1719490251191,-3676.24400557,0.00019997,2]
[330484137,1719490251200,-155.29565676,0.00019997,2]
[330484138,1719490251210,-881.13956643,0.00019997,2]
[330484139,1719490251220,-187.98950522,0.0002,2]
[330484140,1719490251491,-326.82157281,0.0002,2]
[330484141,1719490251501,-155.25696509,0.0002,2]
[330484142,1719490251512,-868.70090096,0.0002,2]
[330484143,1719490251523,-552.5062169,0.0002,2]
[330484144,1719490251533,-554.72277174,0.0002,2]
[330484145,1719490251543,-3983.38905722,0.0002,2]
[330484146,1719490251552,-306.14755285,0.0002,2]
[330484147,1719490251562,-2000.0,0.0002,2]
[330484148,1719490251572,-151.0,0.0002,2]
[330484149,1719490251582,-151.0,0.0002,2]
[330484150,1719490251592,-151.0,0.0002,2]
[330484151,1719490251602,-151.0,0.0002,2]
[330484152,1719490251612,-151.0,0.0002,2]
[330484153,1719490251622,-151.0,0.0002,2]
[330484154,1719490251632,-151.0,0.0002,2]
[330484155,1719490251647,-151.0,0.0002,2]
[330484156,1719490251657,-277.195157,0.0002,2]
[330484157,1719490251667,-399.809888,0.0002,2]
[330484158,1719490251677,-399.809888,0.0002,2]
[330484159,1719490251687,-151.0,0.0002,2]
[330484160,1719490251697,-151.0,0.0002,2]
[330484161,1719490251707,-151.0,0.0002,2]
[330484162,1719490251717,-151.0,0.0002,2]
[330484163,1719490251727,-366.045428,0.0002,2]
[330484164,1719490251737,-366.045428,0.0002,2]
[330484165,1719490251747,-151.0,0.0002,2]
[330484166,1719490251758,-151.642176,0.0002,2]
[330484167,1719490251767,-151.0,0.0002,2]
[330484168,1719490251778,-151.131279,0.0002,2]
[330484169,1719490251787,-151.0,0.0002,2]
[330484170,1719490251797,-559.960178,0.0002,2]
[330484171,1719490251807,-559.960178,0.0002,2]
[330484172,1719490251818,-151.450446,0.0002,2]
[330484173,1719490251828,-151.0,0.0002,2]
[330484174,1719490251838,-151.0,0.0002,2]
[330484175,1719490251847,-151.0,0.0002,2]
[330484176,1719490251857,-151.0,0.0002,2]
[330484177,1719490251867,-151.0,0.0002,2]
[330484178,1719490251876,-151.0,0.0002,2]
[330484179,1719490251886,-151.0,0.0002,2]
[330484180,1719490251896,-151.0,0.0002,2]
[330484181,1719490251906,-1112.202149,0.0002,2]
[330484182,1719490251916,-1112.202149,0.0002,2]
[330484183,1719490251945,-151.0,0.0002,2]
[330484184,1719490251955,-151.0,0.0002,2]
[330484185,1719490251965,-151.307137,0.0002,2]
[330484186,1719490251975,-151.0,0.0002,2]
[330484187,1719490251985,-469.746936,0.0002,2]
[330484188,1719490251994,-469.746936,0.0002,2]
[330484189,1719490252006,-172.600509,0.0002,2]
[330484190,1719490252016,-172.600509,0.0002,2]
[330484191,1719490252026,-151.0,0.0002,2]
[330484192,1719490252037,-151.0,0.0002,2]
[330484193,1719490252048,-151.69907,0.0002,2]
[330484194,1719490252058,-151.0,0.0002,2]
[330484195,1719490252068,-151.0,0.0002,2]
[330484196,1719490252078,-151.0,0.0002,2]
[330484197,1719490252088,-151.0,0.0002,2]
[330484198,1719490252099,-151.0,0.0002,2]
[330484199,1719490252110,-300.94189781,0.0002,2]
[330484200,1719490252120,-151.0,0.0002,2]
[330484201,1719490252130,-442.690789,0.0002,2]
[330484202,1719490252142,-273.447364,0.0002,2]
[330484203,1719490252153,-151.0,0.0002,2]
[330484204,1719490252162,-151.0,0.0002,2]
[330484205,1719490252172,-151.740638,0.0002,2]
[330484206,1719490252182,-151.0,0.0002,2]
[330484207,1719490252192,-442.690789,0.0002,2]
[330484208,1719490252202,-151.0,0.0002,2]
[330484209,1719490252211,-301.207661,0.0002,2]
[330484210,1719490252221,-151.0,0.0002,2]
[330484211,1719490252231,-301.207661,0.0002,2]
[330484212,1719490252241,-151.0,0.0002,2]
[330484213,1719490252250,-22459.98202952,0.0002,2]
[330484214,1719490252260,-833.69180635,0.0002,2]
[330484215,1719490252270,-151.0,0.0002,2]
[330484216,1719490252280,-255.577204,0.0002,2]
[330484217,1719490252289,-151.0,0.0002,2]
[330484218,1719490252299,-151.0,0.0002,2]
[330484219,1719490252308,-151.334627,0.0002,2]
[330484220,1719490252318,-151.0,0.0002,2]
[330484221,1719490252328,-151.0,0.0002,2]
[330484222,1719490252338,-151.0,0.0002,2]
[330484223,1719490252348,-151.0,0.0002,2]
[330484224,1719490252358,-262.443543,0.0002,2]
[330484225,1719490252367,-151.0,0.0002,2]
[330484226,1719490252378,-151.0,0.0002,2]
[330484227,1719490252387,-199.475403,0.0002,2]
[330484228,1719490252397,-199.475403,0.0002,2]
[330484229,1719490252408,-1073.39,0.00020045,2]
[330484230,1719490252418,-164.7,0.00020045,2]
[330484231,1719490252428,-354.51,0.00020045,2]
[330484232,1719490252437,-1052.24,0.00020045,2]
[330484233,1719490252461,-150.0,0.00020045,2]
[330484234,1719490252471,-423.92,0.00020045,2]
[330484235,1719490252481,-150.0,0.00020045,2]
[330484236,1719490252490,-527.96,0.00020045,2]
[330484237,1719490252500,-172.671284,0.00020097,2]
[330484238,1719490252510,-2017.10975651,0.000202,2]
[330484239,1719490252520,-1000.0,0.000202,7]
[330484240,1719490252531,-3179.90201373,0.00020218,2]
[330484241,1719490252541,-604.61,0.00020283,2]
[330484242,1719490252552,-1300.0,0.000203,7]
[330484243,1719490252562,-152.203408,0.00020328,2]
[330484244,1719490252576,-151.0,0.00020328,2]
[330484245,1719490252585,-151.0,0.00020328,2]
[330484246,1719490252597,-151.0,0.00020328,2]
[330484247,1719490252607,-269.48191,0.00020328,2]
[330484248,1719490252617,-269.48191,0.00020328,2]
[330484249,1719490252627,-151.0,0.00020328,2]
[330484250,1719490252642,-151.0,0.00020328,2]
[330484251,1719490252652,-151.0,0.00020328,2]
[330484252,1719490252665,-151.0,0.00020328,2]
[330484253,1719490252675,-151.0,0.00020328,2]
[330484254,1719490252685,-172.671284,0.00020349,2]
[330484255,1719490252696,-419.026821,0.000204,2]
[330484256,1719490252706,-1700.0,0.000204,7]
[330484257,1719490252716,-151.0,0.00020483,2]
[330484258,1719490252726,-300.0,0.000205,7]
[330484259,1719490252739,-2840.63896348,0.00020567,2]
[330484260,1719490252749,-172.671284,0.000206,2]
[330484261,1719490252759,-300.0,0.000206,7]
[330484262,1719490252768,-300.0,0.000207,7]
[330484263,1719490252778,-300.0,0.000208,7]
[330484264,1719490252787,-3179.90201373,0.00020809,2]
[330484265,1719490252797,-151.0,0.00020821,2]
[330484266,1719490252807,-176.451685,0.00020821,2]
[330484267,1719490252817,-176.451685,0.00020821,2]
[330484268,1719490252827,-151.0,0.00020821,2]
[330484269,1719490252837,-151.0,0.00020821,2]
[330484270,1719490252846,-172.002093,0.00020821,2]
[330484271,1719490252856,-172.002093,0.00020821,2]
[330484272,1719490252865,-151.0,0.00020821,2]
[330484273,1719490252875,-171.271008,0.00020821,2]
[330484274,1719490252885,-151.0,0.00020821,2]
[330484275,1719490252894,-151.0,0.00020821,2]
[330484276,1719490252904,-171.271008,0.00020821,2]
[330484277,1719490252914,-500.0,0.00020821,6]
[330484278,1719490252923,-500.0,0.00020821,6]
[330484279,1719490252932,-500.0,0.00020821,6]
[330484280,1719490252946,-500.0,0.00020821,6]
[330484281,1719490252962,-500.0,0.00020821,6]
[330484282,1719490252971,-500.0,0.00020821,6]
[330484283,1719490252982,-500.0,0.00020821,6]
[330484284,1719490252991,-500.0,0.00020821,6]
[330484285,1719490253002,-500.0,0.00020821,6]
[330484286,1719490253011,-500.0,0.00020821,6]
[330484287,1719490253021,-500.0,0.00020821,6]
[330484288,1719490253031,-500.0,0.00020821,6]
[330484289,1719490253042,-500.0,0.00020821,6]
[330484290,1719490253052,-500.0,0.00020821,6]
[330484291,1719490253063,-500.0,0.00020821,6]
[330484292,1719490253072,-500.0,0.00020821,6]
[330484293,1719490253083,-500.0,0.00020821,6]
[330484294,1719490253092,-220.37829268,0.00020821,6]
[330484295,1719490253102,-172.671284,0.00020851,2]
[330484296,1719490253112,-151.0,0.000209,2]
[330484297,1719490253122,-151.0,0.000209,2]
[330484298,1719490253132,-151.0,0.000209,2]
[330484299,1719490253142,-151.0,0.000209,2]
[330484300,1719490253152,-151.0,0.000209,2]
[330484301,1719490253161,-151.0,0.000209,2]
[330484302,1719490253171,-151.0,0.000209,2]
[330484303,1719490253180,-151.0,0.000209,2]
[330484304,1719490253190,-151.0,0.000209,2]
[330484305,1719490253213,-151.0,0.000209,2]
[330484306,1719490253222,-176.451685,0.000209,2]
[330484307,1719490253233,-176.451685,0.000209,2]
[330484308,1719490253242,-151.0,0.000209,2]
[330484309,1719490253253,-172.002093,0.000209,2]
[330484310,1719490253262,-172.002093,0.000209,2]
[330484311,1719490253272,-171.271008,0.000209,2]
[330484312,1719490253281,-151.0,0.000209,2]
[330484313,1719490253291,-171.271008,0.000209,2]
[330484314,1719490253302,-277.147,0.000209,2]
[330484315,1719490253311,-151.0,0.000209,2]
[330484316,1719490253321,-399.809888,0.000209,2]
[330484317,1719490253331,-399.809888,0.000209,2]
[330484318,1719490253341,-151.0,0.000209,2]
[330484319,1719490253350,-151.0,0.000209,2]
[330484320,1719490253360,-151.0,0.000209,2]
[330484321,1719490253370,-366.045428,0.000209,2]
[330484322,1719490253380,-366.045428,0.000209,2]
[330484323,1719490253389,-151.0,0.000209,2]
[330484324,1719490253400,-151.0,0.000209,2]
[330484325,1719490253410,-266.485009,0.000209,2]
[330484326,1719490253420,-559.960178,0.000209,2]
[330484327,1719490253430,-559.960178,0.000209,2]
[330484328,1719490253440,-700.0,0.000209,7]
[330484329,1719490253462,-321233.181696,0.000209,3]
[330484330,1719490253472,-832.39868998,0.000209,2]
[330484331,1719490253482,-151.0,0.000209,2]
[330484332,1719490253492,-151.0,0.000209,2]
[330484333,1719490253502,-9072.49158973,0.000209,2]
[330484334,1719490253512,-151.0,0.000209,2]
[330484335,1719490253524,-151.0,0.000209,2]
[330484336,1719490253533,-151.0,0.000209,2]
[330484337,1719490253543,-151.0,0.000209,2]
[330484338,1719490253553,-199.475403,0.000209,2]
[330484339,1719490253563,-199.475403,0.000209,2]
[330484340,1719490253572,-5828.0,0.00020986,2]
[330484341,1719490253582,-576.0,0.00020986,2]
[330484342,1719490253591,-151.0,0.00020989,2]
[330484343,1719490253601,-193.38921262,0.0002099,2]
[330484344,1719490253611,-150.0,0.00020999,2]
[330484345,1719490253620,-150.0,0.00020999,7]
[330484346,1719490253630,-150.0,0.00020999,7]
[330484347,1719490253645,-198645.46177666,0.00021,7]
[330484348,1719490255082,-380.35481432,0.00014433,2]
[330484349,1719490255093,-228.47388694,0.00018,2]
[330484350,1719490255104,-11690.60262503,0.00021,7]
[330484351,1719490255146,-228.47388694,0.00018,2]
[330484352,1719490255157,-703.36655234,0.00021,7]
[330484353,1719490255174,-2576.54485755,0.00021,7]
[330484375,1719491431630,-650.83910401,0.00011098,2]
[330484378,1719491431640,-4449.51330229,0.00011098,2]
[330484380,1719491431650,-155.0,0.00011098,2]
[330484383,1719491431663,-1340.45084067,0.00011098,2]
[330484385,1719491431673,-15423.93998128,0.00011199,2]
[330484387,1719491431683,-15900.7983,0.00013372,2]
[330484388,1719491431697,-246.63432185,0.00013899,2]
[330484389,1719491431708,-86597.2048,0.000139,2]
[330484390,1719491431718,-8435.4094,0.000139,2]
[330484391,1719491431727,-226.97665617,0.00014973,2]
[330484392,1719491431736,-11749.0,0.000156,5]
[330484393,1719491431746,-499.73,0.00016768,2]
[330484394,1719491431755,-3023.35359891,0.00017444,2]
[330484395,1719491431765,-5000.0,0.00017533,2]
[330484396,1719491431774,-500.0,0.00017856,2]
[330484397,1719491431788,-2373.57182662,0.00018081,2]
[330484398,1719491431799,-2373.57182662,0.00018081,2]
[330484399,1719491431810,-438.48138607,0.00018433,2]
[330484400,1719491431820,-1562.84,0.00018481,2]
[330484401,1719491431831,-1000.0,0.00018483,2]
[330484402,1719491431842,-228.95,0.00018533,2]
[330484403,1719491431852,-250.0,0.00018574,2]
[330484404,1719491431863,-250.0,0.00018669,2]
[330484405,1719491431873,-438.48138603,0.00018763,2]
[330484406,1719491431883,-193.46230589,0.00018764,2]
[330484407,1719491431893,-625.33216649,0.00018835,2]
[330484408,1719491431903,-277.18718567,0.00018899,2]
[330484409,1719491431913,-660.11977562,0.00018919,2]
[330484410,1719491431924,-499.73,0.00019032,2]
[330484411,1719491431934,-183.79325565,0.00019069,2]
[330484412,1719491431949,-2003.84156611,0.00019069,2]
[330484413,1719491431960,-438.48138603,0.00019092,2]
[330484414,1719491431971,-250.0,0.00019178,2]
[330484415,1719491431982,-10000.0,0.00019255,2]
[330484416,1719491431992,-281.0485,0.00019255,2]
[330484418,1719491432002,-2500.0,0.00019255,2]
[330484420,1719491432013,-438.48138603,0.00019422,2]
[330484423,1719491432027,-201.99514089,0.00019548,2]
[330484424,1719491432038,-438.48138603,0.00019752,2]
[330484426,1719491432048,-11709.6662,0.00019864,2]
[330484428,1719491432059,-255.56085265,0.00019997,2]
[330484431,1719491432070,-501.0,0.0002,2]
[330484433,1719491432080,-438.48138603,0.00020081,2]
[330484435,1719491432091,-150.0,0.000204,2]
[330484437,1719491432102,-438.48138603,0.00020411,2]
[330484438,1719491432112,-277.36138587,0.00020579,2]
[330484439,1719491432122,-1012.71220933,0.0002058,2]
[330484440,1719491432132,-1084.11163822,0.0002058,2]
[330484441,1719491432142,-1064.30322694,0.0002058,2]
[330484442,1719491432152,-438.48138603,0.00020741,2]
[330484443,1719491432162,-1000.0,0.00020793,2]
[330484444,1719491432172,-329.54048749,0.00020897,2]
[330484445,1719491432182,-303.36837309,0.00020897,2]
[330484446,1719491432192,-214.67559666,0.00020898,2]
[330484447,1719491432207,-165.96114656,0.000209,2]
[330484448,1719491432216,-155.27735734,0.000209,2]
[330484449,1719491432226,-7500.0,0.000209,2]
[330484450,1719491432235,-554.93246,0.000209,2]
[330484451,1719491432245,-303.36837305,0.00020969,2]
[330484452,1719491432255,-545.24868628,0.00020988,3]
[330484453,1719491432264,-1635.74605884,0.0002099,3]
[330484454,1719491432274,-292814.230648,0.0002099,3]
[330484455,1719491432284,-500.0,0.00020997,2]
[330484456,1719491432295,-242.42163665,0.00020997,2]
[330484457,1719491432305,-500.0,0.00020997,2]
[330484458,1719491432319,-528.47852814,0.00020997,2]
[330484459,1719491432329,-327.32845718,0.00020997,2]
[330484460,1719491432339,-427.9289331,0.00020998,2]
[330484461,1719491432349,-26743.1889602,0.00020998,2]
[330484462,1719491432360,-553.9188031,0.00020998,2]
[330484463,1719491432370,-4529.7064343,0.00020998,2]
[330484464,1719491432380,-1841.2970488,0.00020998,2]
[330484465,1719491432390,-2092.1699277,0.00020998,2]
[330484466,1719491432401,-2362.03538,0.00020998,2]